bitfinex/quotes_ETHUSD_20240925
["timestamp","ask_amount","ask_price","bid_price","bid_amount"]
[1727261645379,0.04380085,2625.7,2625.4,0.7806]
[1727261645682,3.80838,2625.8,2625.4,0.7806]
[1727261645913,3.80829,2625.9,2625.4,4.58952]
[1727261646115,3.0,2626.0,2625.5,0.458952]
[1727261647209,3.85213135,2625.9,2625.6,0.8315]
[1727261648284,3.80843,2625.8,2625.6,0.8315]
[1727261648519,3.8085,2625.7,2625.4,0.7804]
[1727261648829,3.80865,2625.6,2625.4,0.7804]
[1727261649185,3.85292595,2625.5,2625.4,0.7804]
[1727261649739,3.85292595,2625.5,2625.2,0.8034971]
[1727261649893,3.80879,2625.5,2625.2,0.8034971]
[1727261650087,3.80866,2625.6,2625.2,0.8034971]
[1727261650491,0.04400407,2625.5,2625.2,0.8034971]
[1727261650693,3.80901,2625.4,2625.2,0.8034971]
[1727261651119,4.68332407,2625.5,2625.2,0.8034971]
[1727261651120,3.85294883,2625.3,2625.2,0.8034971]
[1727261651616,0.04386883,2625.3,2625.2,0.8034971]
[1727261652727,3.8086,2625.7,2625.2,0.8034971]
[1727261652937,3.80873,2625.6,2625.2,0.8034971]
[1727261653234,0.04401974,2625.5,2625.2,0.8034971]
[1727261654416,3.85281974,2625.5,2625.2,0.8034971]
[1727261655295,0.04401974,2625.5,2625.2,0.8034971]
[1727261656305,3.85291974,2625.5,2625.2,0.8034971]
[1727261659110,3.85291974,2625.5,2625.2,0.0378971]
[1727261659447,4.19430197,2625.4,2625.2,0.0378971]
[1727261659952,0.0438676,2625.3,2625.2,0.0378971]
[1727261662440,3.8529476,2625.3,2625.2,0.0378971]
[1727261666078,0.0438676,2625.3,2625.2,0.0378971]
[1727261667868,3.8529476,2625.3,2625.2,0.0378971]
[1727261670097,6.00119672,2625.3,2625.2,0.0378971]
[1727261672112,6.81089672,2625.3,2625.2,0.0378971]
[1727261672477,5.50481636,2625.3,2625.2,0.0378971]
[1727261674187,4.69511636,2625.3,2625.2,0.0378971]
[1727261674388,3.8529476,2625.3,2625.2,0.0378971]
[1727261675595,0.0438676,2625.3,2625.2,0.0378971]
[1727261675792,3.8529476,2625.3,2625.2,0.0378971]
[1727261677995,3.8529476,2625.3,2625.2,0.0378971]
[1727261684251,0.0438676,2625.3,2625.2,0.0378971]
[1727261684712,3.80888,2625.5,2625.2,0.0378971]
[1727261684918,0.04360229,2625.3,2625.2,0.0378971]
[1727261685103,7.61777,2625.5,2625.2,0.0378971]
[1727261685305,0.04360229,2625.3,2625.2,0.0378971]
[1727261685514,3.80898,2625.4,2625.2,0.0378971]
[1727261685714,0.04360229,2625.3,2625.2,0.0378971]
[1727261689934,3.80885,2625.5,2625.2,0.0378971]
[1727261690133,0.04362258,2625.3,2625.2,0.0378971]
[1727261690340,3.80885,2625.5,2625.2,0.0378971]
[1727261690544,0.04362258,2625.3,2625.2,0.0378971]
[1727261690719,3.80885,2625.5,2625.2,0.0378971]
[1727261690917,0.04362258,2625.3,2625.2,0.0378971]
[1727261691113,3.80885,2625.5,2625.2,0.0378971]
[1727261691343,0.04362258,2625.3,2625.2,3.8471071]
[1727261691556,3.80867,2625.6,2625.2,4.31330381]
[1727261691708,0.04363736,2625.3,2625.2,4.31330381]
[1727261692043,0.04363736,2625.3,2625.2,3.8471071]
[1727261692338,3.80859,2625.7,2625.2,3.8471071]
[1727261692613,0.04363736,2625.3,2625.2,3.8471071]
[1727261692759,3.80867,2625.6,2625.2,3.8471071]
[1727261693228,0.04376247,2625.5,2625.2,3.8471071]
[1727261693720,0.04376247,2625.5,2625.2,4.90483936]
[1727261695963,3.80895,2625.4,2625.2,0.0378971]
[1727261696343,0.04307387,2625.3,2625.2,0.0378971]
[1727261696533,0.04307387,2625.3,2625.2,2.3917753]
[1727261696730,0.04307387,2625.3,2625.2,2.39187233]
[1727261697630,0.04307387,2625.3,2625.2,0.97948719]
[1727261698176,0.04307387,2625.3,2625.2,6.20109775]
[1727261698380,0.04307387,2625.3,2625.2,4.45368647]
[1727261698533,3.80872,2625.6,2625.2,3.04130591]
[1727261698736,0.04293162,2625.3,2625.2,0.8397971]
[1727261698930,4.63522,2625.6,2625.2,1.78138867]
[1727261699150,0.04297035,2625.3,2625.2,0.8397971]
[1727261699354,4.63522,2625.6,2625.2,1.78138886]
[1727261699547,0.04297035,2625.3,2625.2,2.38902575]
[1727261699876,4.63522,2625.6,2625.2,3.33063236]
[1727261700055,0.04292887,2625.3,2625.2,1.76946833]
[1727261700233,4.63522,2625.6,2625.2,2.71107382]
[1727261700436,4.63522,2625.6,2625.2,1.76946833]
[1727261700674,0.04310562,2625.5,2625.2,1.76946833]
[1727261703874,0.04310562,2625.5,2625.3,0.63789035]
[1727261704082,3.80866,2625.6,2625.3,0.63789035]
[1727261704283,0.04317216,2625.4,2625.3,0.63789035]
[1727261704455,3.80866,2625.6,2625.3,0.63789035]
[1727261704655,0.04317216,2625.4,2625.3,0.63789035]
[1727261704964,3.80866,2625.6,2625.3,0.63789035]
[1727261705282,0.04317216,2625.4,2625.3,0.63789035]
[1727261705437,3.80866,2625.6,2625.3,0.63789035]
[1727261706260,0.04341538,2625.5,2625.3,0.63789035]
[1727261709786,0.04341538,2625.5,2625.2,5.57868833]
[1727261710464,3.80852,2625.7,2625.2,5.57861833]
[1727261710669,0.04185484,2625.4,2625.2,5.57861833]
[1727261710988,3.80852,2625.7,2625.2,5.57861833]
[1727261711158,0.04179229,2625.3,2625.2,5.57861833]
[1727261711482,0.04179229,2625.3,2625.2,7.93291764]
[1727261711653,3.80852,2625.7,2625.3,3.80906]
[1727261711864,0.04195412,2625.6,2625.3,5.06326428]
[1727261712045,0.04195412,2625.6,2625.3,3.80906]
[1727261712743,0.04195412,2625.6,2625.3,3.80897]
[1727261712980,0.04195412,2625.6,2625.3,7.61798]
[1727261713299,0.04191739,2625.5,2625.3,7.61797]
[1727261713452,0.04191739,2625.5,2625.3,8.54375423]
[1727261713652,3.80838,2625.8,2625.3,8.54375423]
[1727261713854,3.85057246,2625.7,2625.3,4.73475423]
[1727261714156,3.85057246,2625.7,2625.3,8.54376423]
[1727261714381,3.85057246,2625.7,2625.4,0.55745513]
[1727261714686,0.04204246,2625.7,2625.4,0.55745513]
[1727261715053,3.80838,2625.8,2625.4,0.55745513]
[1727261715253,0.04204246,2625.7,2625.4,0.55745513]
[1727261715459,3.80838,2625.8,2625.4,0.55745513]
[1727261715668,0.04197993,2625.6,2625.4,0.55745513]
[1727261715866,3.80838,2625.8,2625.4,0.55745513]
[1727261716153,0.04191739,2625.5,2625.3,3.80897]
[1727261716353,3.80838,2625.8,2625.3,3.80897]
[1727261716591,0.04185484,2625.4,2625.3,3.80897]
[1727261716794,3.80838,2625.8,2625.3,4.75072373]
[1727261717096,3.80838,2625.8,2625.3,3.80897]
[1727261717279,0.04204246,2625.7,2625.3,3.80897]
[1727261717449,0.04204246,2625.7,2625.3,4.73477823]
[1727261717651,3.80838,2625.8,2625.3,4.73477823]
[1727261717875,0.04204246,2625.7,2625.3,4.73477823]
[1727261718089,3.80838,2625.8,2625.3,4.73477823]
[1727261718271,0.04197993,2625.6,2625.3,4.73477823]
[1727261718478,3.80838,2625.8,2625.3,4.73477823]
[1727261718766,0.04191739,2625.5,2625.3,4.73477823]
[1727261718968,3.80838,2625.8,2625.3,4.73477823]
[1727261719182,0.04185484,2625.4,2625.3,4.73477823]
[1727261719501,0.04185484,2625.4,2625.3,5.67659084]
[1727261719649,3.80838,2625.8,2625.3,5.67659084]
[1727261719851,0.04204246,2625.7,2625.3,3.80897]
[1727261720056,3.80838,2625.8,2625.3,3.80897]
[1727261720294,0.04204246,2625.7,2625.3,3.80897]
[1727261720692,3.80838,2625.8,2625.3,3.80897]
[1727261720902,0.04197993,2625.6,2625.3,3.80897]
[1727261721071,0.04204246,2625.7,2625.3,4.73477823]
[1727261721256,0.04204246,2625.7,2625.3,3.80897]
[1727261721595,0.04191739,2625.5,2625.4,2.3545194]
[1727261721764,3.80838,2625.8,2625.4,2.3545194]
[1727261721971,3.80838,2625.8,2625.3,4.60903516]
[1727261721972,0.04191739,2625.5,2625.3,4.60903516]
[1727261722289,3.80838,2625.8,2625.4,2.35432382]
[1727261722495,3.80838,2625.8,2625.3,5.84320298]
[1727261722730,3.80838,2625.8,2625.4,2.35405833]
[1727261722934,7.61688,2625.8,2625.3,4.60903516]
[1727261723140,3.80865,2625.6,2625.2,5.44903226]
[1727261723347,0.7838,2625.7,2625.3,2.3540492]
[1727261723630,4.59237,2625.7,2625.4,0.94161968]
[1727261723833,4.59237,2625.7,2625.3,3.80908]
[1727261724018,4.59237,2625.7,2625.4,0.9416218]
[1727261724331,3.80836,2625.8,2625.5,1.73671698]
[1727261724531,0.0419185,2625.6,2625.5,0.7951]
[1727261724732,7.6168,2625.8,2625.5,0.7951]
[1727261724909,0.0419895,2625.6,2625.5,0.7951]
[1727261725098,7.6168,2625.8,2625.5,0.7951]
[1727261725301,0.0419895,2625.6,2625.5,0.7951]
[1727261725502,7.61685,2625.8,2625.5,0.7951]
[1727261725722,0.04199626,2625.6,2625.5,0.7951]
[1727261725929,3.80836,2625.8,2625.5,0.7951]
[1727261726409,0.04206218,2625.7,2625.5,0.7951]
[1727261726634,3.80836,2625.8,2625.5,0.7951]
[1727261726833,0.04206218,2625.7,2625.5,0.7951]
[1727261727002,3.80836,2625.8,2625.5,0.7951]
[1727261727206,0.04211379,2625.7,2625.5,0.7951]
[1727261727431,3.80836,2625.8,2625.5,0.7951]
[1727261727735,0.04211379,2625.7,2625.5,0.7951]
[1727261728096,3.80836,2625.8,2625.5,0.7951]
[1727261728292,0.04205125,2625.6,2625.5,0.7951]
[1727261728532,3.80836,2625.8,2625.5,0.7951]
[1727261728710,0.04205125,2625.6,2625.5,0.7951]
[1727261728911,4.61323,2625.9,2625.5,1.33550752]
[1727261729126,0.04205125,2625.6,2625.5,0.7951]
[1727261729297,4.61323,2625.9,2625.5,0.7951]
[1727261729493,0.04205125,2625.6,2625.5,0.7951]
[1727261729698,4.61323,2625.9,2625.5,0.7951]
[1727261729929,0.04205125,2625.6,2625.5,0.7951]
[1727261730133,4.61323,2625.9,2625.5,0.7951]
[1727261730338,0.04205125,2625.6,2625.5,0.7951]
[1727261730505,4.61323,2625.9,2625.5,1.33549952]
[1727261730700,0.04205125,2625.6,2625.5,0.7951]
[1727261730900,4.61323,2625.9,2625.5,0.7951]
[1727261731450,3.80794,2626.1,2625.7,5.11449036]
[1727261731613,3.80794,2626.1,2625.7,1.30608036]
[1727261731800,3.80794,2626.1,2625.8,0.94103075]
[1727261732001,0.04060366,2626.0,2625.7,4.86032255]
[1727261732215,0.04060366,2626.0,2625.7,1.05184255]
[1727261732547,0.04056693,2625.9,2625.7,4.86031255]
[1727261732834,4.63668,2626.2,2625.7,4.86031255]
[1727261733042,4.63666,2626.2,2625.7,4.86031255]
[1727261733243,0.04074359,2626.1,2625.7,4.86031255]
[1727261733430,0.04074359,2626.1,2625.8,2.30413022]
[1727261733615,0.04074359,2626.1,2625.8,1.36363777]
[1727261733829,3.84873359,2626.1,2625.8,0.7976]
[1727261735048,3.84873359,2626.1,2625.7,3.80849]
[1727261735400,0.04074359,2626.1,2625.6,4.61236]
[1727261735638,0.04074359,2626.1,2625.7,6.83060487]
[1727261735817,0.04074359,2626.1,2625.7,4.48034055]
[1727261737881,0.04074359,2626.1,2625.8,0.803]
[1727261740377,0.04074359,2626.1,2625.8,5.91743036]
[1727261740787,3.80779,2626.2,2625.8,5.91743036]
[1727261740942,0.03961691,2626.0,2625.8,5.91743036]
[1727261741283,0.03955438,2625.9,2625.8,6.95722245]
[1727261741444,0.03955438,2625.9,2625.8,5.91743036]
[1727261741780,3.80768,2626.3,2625.9,3.80819]
[1727261742076,3.80764,2626.3,2625.9,3.80819]
[1727261742482,0.03974194,2626.2,2625.8,2.10908036]
[1727261742688,3.84753194,2626.2,2625.8,4.61135]
[1727261742849,3.80793,2626.1,2625.8,0.803]
[1727261743050,0.03979749,2626.0,2625.8,0.803]
[1727261743745,0.03979749,2626.0,2625.8,4.61134]
[1727261743949,4.5992,2626.2,2625.8,4.61134]
[1727261744277,0.7914,2626.2,2625.8,4.61134]
[1727261744484,0.03986001,2626.1,2625.8,4.61134]
[1727261750069,3.80776,2626.3,2625.8,4.61134]
[1727261750265,0.03857006,2626.2,2625.8,4.61134]
[1727261750469,3.80776,2626.3,2625.8,4.61134]
[1727261750671,0.03857006,2626.2,2625.8,4.61134]
[1727261750871,3.80776,2626.3,2625.8,4.61134]
[1727261751103,0.03857006,2626.2,2625.8,4.61134]
[1727261751613,3.80776,2626.3,2625.8,4.61134]
[1727261751907,0.03877317,2626.2,2625.8,4.61134]
[1727261752283,3.80776,2626.3,2625.8,4.61134]
[1727261752510,0.0385909,2626.2,2625.8,4.61134]
[1727261753013,3.80779,2626.2,2625.8,4.61134]
[1727261753218,0.03852839,2626.1,2625.8,4.61134]
[1727261753540,0.03852839,2626.1,2626.0,4.61787]
[1727261753836,3.80728,2626.6,2626.1,3.80788]
[1727261754391,3.80728,2626.6,2625.8,3.07684916]
[1727261754392,3.80778,2626.2,2625.7,4.60656076]
[1727261754597,4.63378,2626.2,2625.7,3.80839]
[1727261754792,4.63378,2626.2,2625.7,7.61682]
[1727261755212,4.63378,2626.2,2625.7,8.40852]
[1727261755419,4.63378,2626.2,2625.8,3.80834]
[1727261756728,0.826,2626.2,2625.8,3.80834]
[1727261759145,1.30608036,2626.1,2625.4,1.62317076]
[1727261759454,1.30608036,2626.1,2625.3,3.80899]
[1727261759455,4.63724,2625.8,2625.3,3.80899]
[1727261759608,4.63724,2625.8,2625.3,7.61799]
[1727261759800,4.63724,2625.8,2625.3,3.80899]
[1727261760350,4.63724,2625.8,2625.3,3.80898]
[1727261760558,4.63724,2625.8,2625.3,4.26979771]
[1727261761856,4.63724,2625.8,2625.3,8.07881771]
[1727261763475,4.63724,2625.8,2625.4,3.80893]
[1727261763636,0.8288,2625.8,2625.4,3.80893]
[1727261765282,0.8047,2626.3,2625.5,2.06308036]
[1727261765576,3.80785,2626.2,2625.8,3.80834]
[1727261766439,3.80785,2626.2,2625.7,3.80849]
[1727261768714,3.80793,2626.1,2625.7,3.80849]
[1727261770303,3.80793,2626.1,2625.6,8.08718194]
[1727261770474,3.80793,2626.1,2625.6,8.08721194]
[1727261770669,3.80793,2626.1,2625.6,4.27863194]
[1727261770906,3.80793,2626.1,2625.6,8.08718194]
[1727261771114,3.80793,2626.1,2625.6,8.08721194]
[1727261771409,3.80793,2626.1,2625.6,4.27863194]
[1727261771708,0.782,2626.0,2625.6,8.08720194]
[1727261772710,4.59014,2626.0,2625.6,0.47008194]
[1727261772916,4.59014,2626.0,2625.5,3.80878]
[1727261782397,4.59014,2626.0,2625.6,3.80864]
[1727261788014,4.59014,2626.0,2625.6,3.80858]
[1727261788015,0.782,2626.0,2625.6,3.80858]
[1727261788216,0.782,2626.0,2625.7,4.25127098]
[1727261789412,3.80785,2626.2,2625.7,0.44277098]
[1727261789610,4.56955,2626.2,2625.7,4.25124098]
[1727261790528,3.80793,2626.1,2625.7,4.25124098]
[1727261796276,3.7617,2626.2,2625.9,3.80814]
[1727261797565,3.0,2626.3,2626.0,3.808]
[1727261797743,4.63629,2626.4,2626.0,3.808]
[1727261798450,3.80785,2626.2,2625.7,3.80838]
[1727261798760,4.56303,2626.1,2625.7,3.80838]
[1727261801547,4.56303,2626.1,2625.7,3.80848]
[1727261806288,4.56303,2626.1,2625.8,0.94070347]
[1727261806464,4.56303,2626.1,2625.7,3.80848]
[1727261806673,4.58243,2626.3,2625.8,6.70107459]
[1727261806965,4.58243,2626.3,2625.8,8.15767508]
[1727261807865,4.58243,2626.3,2625.8,8.15764508]
[1727261808064,4.58243,2626.3,2625.8,4.34934508]
[1727261808271,4.58243,2626.3,2625.9,0.56554254]
[1727261810060,3.80784,2626.2,2625.9,0.56554254]
[1727261810263,3.80784,2626.2,2625.8,3.8083]
[1727261818220,7.61578,2626.2,2625.7,0.79817076]
[1727261818521,3.80804,2626.1,2625.6,4.61241]
[1727261818681,3.80789,2626.2,2625.7,0.94123865]
[1727261818878,3.80808,2626.0,2625.6,2.07690415]
[1727261819209,3.80808,2626.0,2625.7,1.22874851]
[1727261819419,3.80808,2626.0,2625.7,0.28750749]
[1727261819818,3.80789,2626.2,2625.7,0.28750749]
[1727261820119,3.80809,2626.0,2625.8,0.94123515]
[1727261820415,3.80809,2626.0,2625.7,0.28750749]
[1727261820615,3.80809,2626.0,2625.8,0.94126506]
[1727261820808,3.80809,2626.0,2625.7,0.28750749]
[1727261821002,3.80809,2626.0,2625.8,0.94126536]
[1727261821217,3.80809,2626.0,2625.7,0.28750749]
[1727261821424,3.80809,2626.0,2625.8,0.94129415]
[1727261821581,3.80809,2626.0,2625.7,0.28750749]
[1727261821784,3.80809,2626.0,2625.8,0.94129426]
[1727261822025,3.80809,2626.0,2625.7,0.28750749]
[1727261822190,3.80809,2626.0,2625.8,0.94129283]
[1727261822490,3.80809,2626.0,2625.7,0.28750749]
[1727261822691,3.80809,2626.0,2625.8,0.94134083]
[1727261822988,3.80809,2626.0,2625.7,0.28750749]
[1727261822989,3.80809,2626.0,2625.6,5.41061076]
[1727261823192,3.80809,2626.0,2625.7,3.20249755]
[1727261823421,3.80809,2626.0,2625.7,0.8491442]
[1727261823623,3.80809,2626.0,2625.8,0.94139067]
[1727261823798,3.80809,2626.0,2625.7,0.8491442]
[1727261823996,3.80809,2626.0,2625.8,0.94139087]
[1727261824307,3.80802,2626.1,2625.7,0.8491442]
[1727261824508,3.80802,2626.1,2625.8,0.94143348]
[1727261824828,3.80802,2626.1,2625.6,5.41061076]
[1727261825028,3.80802,2626.1,2625.7,2.35358498]
[1727261825324,3.80802,2626.1,2625.8,0.94143399]
[1727261825536,3.80802,2626.1,2625.6,6.97433198]
[1727261825726,3.80802,2626.1,2625.7,2.35369023]
[1727261825919,3.80802,2626.1,2625.8,0.94147609]
[1727261826097,3.80802,2626.1,2625.6,6.97433198]
[1727261826293,3.80802,2626.1,2625.7,2.35370018]
[1727261826630,3.80802,2626.1,2625.8,0.94148007]
[1727261826800,3.80802,2626.1,2625.6,6.97433198]
[1727261827132,3.80803,2626.1,2625.7,3.06441778]
[1727261827290,3.80803,2626.1,2625.6,6.97433198]
[1727261827291,3.80803,2626.1,2625.8,0.94154711]
[1727261827492,3.80803,2626.1,2625.6,6.97433198]
[1727261827690,3.80803,2626.1,2625.7,2.35394585]
[1727261828001,3.80803,2626.1,2625.8,0.94157834]
[1727261828331,3.80803,2626.1,2625.6,10.78289198]
[1727261828627,3.80803,2626.1,2625.6,9.98472122]
[1727261829431,3.80803,2626.1,2625.7,2.35405523]
[1727261829722,3.80803,2626.1,2625.8,0.94162209]
[1727261829950,3.80803,2626.1,2625.6,10.78289198]
[1727261830093,3.80803,2626.1,2625.7,2.3540197]
[1727261830293,3.80803,2626.1,2625.8,0.94160788]
[1727261830507,3.80803,2626.1,2625.6,10.78289198]
[1727261830715,3.80803,2626.1,2625.7,2.3541671]
[1727261831010,3.80803,2626.1,2625.8,0.94166684]
[1727261831212,3.80803,2626.1,2625.6,10.78283198]
[1727261831388,3.80803,2626.1,2625.7,2.35432783]
[1727261831592,3.80803,2626.1,2625.8,0.94173113]
[1727261831812,3.80803,2626.1,2625.6,6.97425198]
[1727261832141,3.80803,2626.1,2625.7,2.3543182]
[1727261832346,3.80803,2626.1,2625.8,0.94172728]
[1727261832538,3.80803,2626.1,2625.6,6.97425198]
[1727261832720,3.80803,2626.1,2625.7,2.35454298]
[1727261832909,3.80803,2626.1,2625.8,0.94181719]
[1727261833244,3.80803,2626.1,2625.6,10.78280198]
[1727261833406,3.80803,2626.1,2625.7,2.35469131]
[1727261833607,3.80803,2626.1,2625.8,2.35469131]
[1727261833834,3.80803,2626.1,2625.7,0.79817076]
[1727261834045,3.80803,2626.1,2625.8,2.35468545]
[1727261834249,3.80803,2626.1,2625.7,0.79817076]
[1727261834413,3.80803,2626.1,2625.8,2.35469977]
[1727261834617,3.80803,2626.1,2625.6,10.78280198]
[1727261834846,3.80803,2626.1,2625.7,2.35471231]
[1727261835012,3.80803,2626.1,2625.8,2.35471231]
[1727261835339,3.80803,2626.1,2625.6,10.78280198]
[1727261835574,3.80803,2626.1,2625.7,2.35471167]
[1727261835766,3.80803,2626.1,2625.8,2.35471167]
[1727261835905,3.80803,2626.1,2625.7,0.79817076]
[1727261836111,3.80803,2626.1,2625.8,2.35469233]
[1727261836417,3.80803,2626.1,2625.7,0.79817076]
[1727261836610,3.80803,2626.1,2625.8,2.35470572]
[1727261836813,3.80803,2626.1,2625.7,0.79817076]
[1727261837004,3.80803,2626.1,2625.8,2.35470615]
[1727261837223,3.80803,2626.1,2625.6,10.78283198]
[1727261837407,3.80803,2626.1,2625.7,2.3547052]
[1727261837635,3.80803,2626.1,2625.8,2.35469519]
[1727261837938,3.80803,2626.1,2625.6,6.97424198]
[1727261838152,3.80803,2626.1,2625.7,2.354688]
[1727261838307,3.80803,2626.1,2625.8,2.354688]
[1727261838508,3.80803,2626.1,2625.7,0.79817076]
[1727261838737,3.80803,2626.1,2625.8,0.94187171]
[1727261838923,3.80803,2626.1,2625.6,10.78280198]
[1727261839113,3.80803,2626.1,2625.7,2.35470377]
[1727261839325,3.80803,2626.1,2625.8,0.94188151]
[1727261839525,3.80803,2626.1,2625.6,6.97424198]
[1727261839726,3.80803,2626.1,2625.7,2.35467576]
[1727261839939,3.80803,2626.1,2625.8,2.35465841]
[1727261840113,3.80803,2626.1,2625.6,10.78281198]
[1727261840318,3.80803,2626.1,2625.7,2.35465405]
[1727261840557,3.80803,2626.1,2625.8,2.35465405]
[1727261840859,3.80803,2626.1,2625.6,6.97424198]
[1727261841015,0.7767,2626.0,2625.7,2.35466333]
[1727261841217,0.7767,2626.0,2625.8,0.94186533]
[1727261841441,4.58479,2626.0,2625.6,6.17044198]
[1727261841653,4.58479,2626.0,2625.7,2.35463738]
[1727261841822,4.58479,2626.0,2625.8,0.94185495]
[1727261842023,0.7767,2626.0,2625.6,6.17044198]
[1727261842223,0.7767,2626.0,2625.7,3.28004897]
[1727261842445,0.7767,2626.0,2625.8,0.94184998]
[1727261842639,0.7767,2626.0,2625.7,0.92542402]
[1727261842856,3.80802,2626.1,2625.8,2.35462675]
[1727261843156,3.80802,2626.1,2625.7,4.73392402]
[1727261843157,3.80802,2626.1,2625.7,5.54462402]
[1727261843360,3.80802,2626.1,2625.8,2.35461394]
[1727261843524,3.80802,2626.1,2625.7,5.54462402]
[1727261843720,3.80802,2626.1,2625.8,2.3546091]
[1727261843964,3.80802,2626.1,2625.7,5.54462402]
[1727261844161,3.80802,2626.1,2625.8,2.35460922]
[1727261844361,3.80802,2626.1,2625.7,5.54462402]
[1727261844567,3.80802,2626.1,2625.8,2.35469158]
[1727261844764,3.80802,2626.1,2625.7,5.54462402]
[1727261844963,3.80802,2626.1,2625.8,2.35468372]
[1727261845262,3.80802,2626.1,2625.7,6.34279478]
[1727261845461,3.80802,2626.1,2625.8,2.35468328]
[1727261845660,3.80802,2626.1,2625.7,6.34279478]
[1727261845866,3.80802,2626.1,2625.8,2.354697]
[1727261846053,3.80802,2626.1,2625.7,6.34279478]
[1727261846253,3.80802,2626.1,2625.8,2.35469678]
[1727261846555,3.80802,2626.1,2625.7,6.34279478]
[1727261846753,3.80802,2626.1,2625.8,2.35469352]
[1727261846958,0.7767,2626.2,2625.8,3.80834]
[1727261847163,12.38320036,2626.7,2625.9,4.75002777]
[1727261847164,3.8075,2626.4,2625.9,4.75002777]
[1727261847348,3.8075,2626.4,2626.0,3.11216056]
[1727261847672,3.8075,2626.4,2626.0,4.56555]
[1727261848031,4.63269,2626.8,2626.3,3.80753]
[1727261848248,4.63269,2626.8,2626.4,4.31884104]
[1727261848476,4.63269,2626.8,2626.5,0.94124137]
[1727261848663,4.63269,2626.8,2626.4,3.80748]
[1727261848858,4.63269,2626.8,2626.5,0.9412127]
[1727261849072,4.63269,2626.8,2626.4,3.80748]
[1727261849856,0.8257,2626.8,2626.4,3.80741]
[1727261850069,0.8257,2626.8,2626.4,8.28935079]
[1727261850841,0.8257,2626.8,2626.4,4.48194079]
[1727261851042,4.63262,2626.8,2626.4,3.80741]
[1727261851953,4.63262,2626.8,2626.3,3.80754]
[1727261852436,4.63262,2626.8,2626.4,3.80749]
[1727261861986,4.63262,2626.8,2626.4,3.80749]
[1727261863657,0.8045,2627.1,2626.6,1.30608036]
[1727261863861,0.8045,2627.1,2626.7,3.88312762]
[1727261864187,6.80639,2627.2,2626.8,0.7669]
[1727261864188,3.80639,2627.2,2626.8,0.7669]
[1727261864345,3.80639,2627.2,2626.8,5.1693908]
[1727261864760,7.61283,2627.2,2626.8,1.3625108]
[1727261865083,3.80648,2627.1,2626.8,1.3625108]
[1727261865887,3.80668,2627.0,2626.6,4.57407]
[1727261866686,4.63118,2627.0,2626.5,4.1932998]
[1727261866852,4.63118,2627.0,2626.6,0.54995802]
[1727261870016,4.63118,2627.0,2626.6,4.35714802]
[1727261872906,4.63118,2627.0,2626.6,0.54995802]
[1727261884502,3.80677,2626.9,2626.6,0.54995802]
[1727261884886,3.80677,2626.9,2626.5,3.80727]
[1727261884887,3.80715,2626.7,2626.3,3.80762]
[1727261885229,4.56405,2626.7,2626.3,4.19359955]
[1727261885944,4.56405,2626.7,2626.3,3.80762]
[1727261886236,4.56405,2626.7,2626.3,5.78433571]
[1727261886744,4.56405,2626.7,2626.3,5.78440808]
[1727261887226,4.56405,2626.7,2626.3,5.398282]
[1727261887792,4.56405,2626.7,2626.4,0.38619577]
[1727261888182,4.56405,2626.7,2626.3,5.398282]
[1727261889715,4.56405,2626.7,2626.4,0.38639079]
[1727261889917,4.56398,2626.7,2626.3,1.590662]
[1727261890222,4.56398,2626.7,2626.4,0.38638275]
[1727261890529,4.56398,2626.7,2626.5,0.38649471]
[1727261890738,4.56398,2626.7,2626.3,2.20857517]
[1727261890889,4.56398,2626.7,2626.4,0.38649519]
[1727261891091,4.56398,2626.7,2626.5,0.38649519]
[1727261891322,4.56398,2626.7,2626.3,5.83522038]
[1727261891531,4.56398,2626.7,2626.4,0.38661785]
[1727261891832,4.56398,2626.7,2626.5,0.38661785]
[1727261892040,4.56398,2626.7,2626.3,6.53137282]
[1727261892233,4.56398,2626.7,2626.4,1.32678951]
[1727261892403,4.56398,2626.7,2626.5,0.38662034]
[1727261892840,4.56398,2626.7,2626.3,5.12168561]
[1727261893147,4.56398,2626.7,2626.4,1.55903176]
[1727261893293,4.56398,2626.7,2626.4,0.6188389]
[1727261893494,4.56398,2626.7,2626.4,1.23767788]
[1727261893836,4.56398,2626.7,2626.4,2.24329145]
[1727261894336,4.56398,2626.7,2626.5,0.38677445]
[1727261894544,4.56398,2626.7,2626.6,0.38677445]
[1727261894545,0.7569,2626.7,2626.6,0.38677445]
[1727261894848,0.7569,2626.7,2626.4,1.23767788]
[1727261895906,0.7569,2626.7,2626.6,0.38689237]
[1727261896129,0.7569,2626.7,2626.5,0.38689237]
[1727261896442,3.80697,2626.8,2626.5,0.38689237]
[1727261896443,3.80693,2626.8,2626.6,0.38690056]
[1727261897017,3.80693,2626.8,2626.5,0.75443666]
[1727261897218,3.80693,2626.8,2626.6,0.38690292]
[1727261897419,3.80693,2626.8,2626.7,0.38691219]
[1727261898110,3.80693,2626.8,2626.4,5.04516788]
[1727261898315,3.80693,2626.8,2626.5,1.32755343]
[1727261898611,3.80693,2626.8,2626.6,0.3869225]
[1727261898835,3.80693,2626.8,2626.4,5.04516788]
[1727261899035,3.80693,2626.8,2626.5,1.32758734]
[1727261899223,3.80693,2626.8,2626.6,0.38692632]
[1727261899419,3.80693,2626.8,2626.4,5.04516788]
[1727261899624,3.80693,2626.8,2626.5,0.94069227]
[1727261899828,3.80693,2626.8,2626.4,5.04516788]
[1727261900013,3.80693,2626.8,2626.5,0.94069169]
[1727261900214,3.80693,2626.8,2626.5,0.38693829]
[1727261901126,3.80693,2626.8,2626.6,0.38693829]
[1727261901657,3.80693,2626.8,2626.7,0.38693829]
[1727261903214,4.61813,2626.8,2626.7,0.38693829]
[1727261903423,6.76821136,2626.8,2626.7,0.38693829]
[1727261903661,3.80721,2626.6,2626.2,3.80778]
[1727261903916,3.80721,2626.6,2626.3,0.94086431]
[1727261904155,3.80721,2626.6,2626.2,0.85617275]
[1727261904356,3.80721,2626.6,2626.3,0.94088795]
[1727261904555,3.80721,2626.6,2626.2,0.85617275]
[1727261904838,3.80721,2626.6,2626.3,1.32782173]
[1727261905043,3.80721,2626.6,2626.4,0.38698834]
[1727261905224,3.80721,2626.6,2626.2,0.85617275]
[1727261905746,3.80721,2626.6,2626.3,0.38699739]
[1727261906058,3.80721,2626.6,2626.4,0.38699739]